[Event "Titled Tuesday Blitz July 4 Late 2023"]
[White "Shapiro, Daniel"]
[Black "Hoffmann, Asa"]
[WhiteFideId "2001780"]
[BlackFideId "2001470"]
[WhiteElo "2335"]
[BlackElo "2427"]
[Result "1-0"]
[Round "7"]
[TimeControl "180+2"]
[Date "2023.07.04"]
[WhiteClock "0:00:14"]
[BlackClock "0:00:17"]
[Board "111"]

1. d4 {[%clk 0:03:00]}  Nf6 {[%clk 0:02:55]} 2. Nf3 {[%clk 0:02:57]}  d6 {[%clk 0:02:49]} 3. c4 {[%clk 0:02:55]}  c6 {[%clk 0:02:49]} 4. Nc3 {[%clk 0:02:55]}  Bf5 {[%clk 0:02:48]} 5. g3 {[%clk 0:02:47]}  h6 {[%clk 0:02:47]} 6. Bg2 {[%clk 0:02:47]}  Nbd7 {[%clk 0:02:46]} 7. O-O {[%clk 0:02:47]}  e5 {[%clk 0:02:46]} 8. Nh4 {[%clk 0:02:39]}  Bh7 {[%clk 0:02:45]} 9. e4 {[%clk 0:02:38]}  Be7 {[%clk 0:02:44]} 10. f4 {[%clk 0:02:37]}  exd4 {[%clk 0:02:43]} 11. Qxd4 {[%clk 0:02:36]}  d5 {[%clk 0:02:43]} 12. Kh1 {[%clk 0:02:02]}  dxe4 {[%clk 0:02:41]} 13. Nxe4 {[%clk 0:01:55]}  O-O {[%clk 0:02:39]} 14. Be3 {[%clk 0:01:26]}  Nxe4 {[%clk 0:02:27]} 15. Bxe4 {[%clk 0:01:26]}  Bxe4+ {[%clk 0:02:25]} 16. Qxe4 {[%clk 0:01:26]}  Bxh4 {[%clk 0:02:25]} 17. gxh4 {[%clk 0:01:25]}  Qxh4 {[%clk 0:02:24]} 18. Rg1 {[%clk 0:01:21]}  Rfe8 {[%clk 0:02:21]} 19. Qd4 {[%clk 0:01:17]}  Nf6 {[%clk 0:02:21]} 20. Rg2 {[%clk 0:01:11]}  Rad8 {[%clk 0:02:20]} 21. Qc3 {[%clk 0:01:10]}  Rd6 {[%clk 0:01:57]} 22. Rag1 {[%clk 0:01:09]}  g6 {[%clk 0:01:49]} 23. Bc5 {[%clk 0:00:50]}  Ne4 {[%clk 0:01:41]} 24. Qe3 {[%clk 0:00:45]}  Rde6 {[%clk 0:01:37]} 25. f5 {[%clk 0:00:45]}  Re5 {[%clk 0:01:18]} 26. fxg6 {[%clk 0:00:38]}  f5 {[%clk 0:01:09]} 27. Bd4 {[%clk 0:00:34]}  Ng3+ {[%clk 0:00:54]} 28. Qxg3 {[%clk 0:00:29]}  Qxd4 {[%clk 0:00:52]} 29. g7 {[%clk 0:00:29]}  f4 {[%clk 0:00:46]} 30. Qg6 {[%clk 0:00:27]}  f3 {[%clk 0:00:41]} 31. Rg4 {[%clk 0:00:15]}  Re4 {[%clk 0:00:30]} 32. Qxe8+ {[%clk 0:00:10]}  Rxe8 {[%clk 0:00:29]} 33. Rxd4 {[%clk 0:00:10]}  f2 {[%clk 0:00:29]} 34. Rf1 {[%clk 0:00:10]}  Re2 {[%clk 0:00:28]} 35. Kg2 {[%clk 0:00:09]}  Rxb2 {[%clk 0:00:27]} 36. Rd7 {[%clk 0:00:09]}  b5 {[%clk 0:00:25]} 37. cxb5 {[%clk 0:00:09]}  cxb5 {[%clk 0:00:25]} 38. Rxf2 {[%clk 0:00:09]}  Rxf2+ {[%clk 0:00:24]} 39. Kxf2 {[%clk 0:00:10]}  a5 {[%clk 0:00:24]} 40. Ra7 {[%clk 0:00:09]}  a4 {[%clk 0:00:24]} 41. Rb7 {[%clk 0:00:09]}  b4 {[%clk 0:00:24]} 42. Rxb4 {[%clk 0:00:09]}  Kxg7 {[%clk 0:00:24]} 43. Rxa4 {[%clk 0:00:10]}  Kg6 {[%clk 0:00:24]} 44. Re4 {[%clk 0:00:09]}  Kf5 {[%clk 0:00:23]} 45. Re3 {[%clk 0:00:10]}  h5 {[%clk 0:00:23]} 46. a4 {[%clk 0:00:11]}  Kf4 {[%clk 0:00:23]} 47. a5 {[%clk 0:00:12]}  h4 {[%clk 0:00:22]} 48. a6 {[%clk 0:00:12]}  h3 {[%clk 0:00:23]} 49. a7 {[%clk 0:00:13]}  Kf5 {[%clk 0:00:17]} 50. a8=Q {[%clk 0:00:14]} 1-0


[Site "https://www.chess.com"]

[Event "Titled Tuesday Blitz July 4 Late 2023"]
[White "Vasques, Antonio Pedro Freixial"]
[Black "texie1"]
[WhiteFideId "1908332"]
[WhiteElo "2333"]
[BlackElo "2419"]
[Result "0-1"]
[Round "7"]
[TimeControl "180+2"]
[Date "2023.07.04"]
[WhiteClock "0:01:08"]
[BlackClock "0:01:26"]
[Board "112"]

1. Nf3 {[%clk 0:02:54]}  d5 {[%clk 0:03:00]} 2. d4 {[%clk 0:02:54]}  Nf6 {[%clk 0:02:59]} 3. c4 {[%clk 0:02:55]}  e6 {[%clk 0:02:59]} 4. Bg5 {[%clk 0:02:53]}  Be7 {[%clk 0:02:59]} 5. Nc3 {[%clk 0:02:53]}  h6 {[%clk 0:03:00]} 6. Bxf6 {[%clk 0:02:53]}  Bxf6 {[%clk 0:03:00]} 7. e3 {[%clk 0:02:53]}  O-O {[%clk 0:02:58]} 8. Bd3 {[%clk 0:02:53]}  dxc4 {[%clk 0:02:55]} 9. Bxc4 {[%clk 0:02:52]}  c5 {[%clk 0:02:55]} 10. Ne4 {[%clk 0:02:41]}  cxd4 {[%clk 0:02:48]} 11. Nxf6+ {[%clk 0:02:41]}  Qxf6 {[%clk 0:02:48]} 12. Qxd4 {[%clk 0:02:41]}  Qxd4 {[%clk 0:02:40]} 13. Nxd4 {[%clk 0:02:42]}  Bd7 {[%clk 0:02:37]} 14. O-O {[%clk 0:02:38]}  Nc6 {[%clk 0:02:36]} 15. Nb3 {[%clk 0:02:37]}  Ne5 {[%clk 0:02:32]} 16. Be2 {[%clk 0:02:34]}  Bc6 {[%clk 0:02:32]} 17. Rfd1 {[%clk 0:02:31]}  Rfd8 {[%clk 0:02:31]} 18. Na5 {[%clk 0:02:30]}  Bd5 {[%clk 0:02:27]} 19. b3 {[%clk 0:02:27]}  Rac8 {[%clk 0:02:13]} 20. Rac1 {[%clk 0:02:20]}  b6 {[%clk 0:02:13]} 21. Nc4 {[%clk 0:02:04]}  Nxc4 {[%clk 0:02:11]} 22. bxc4 {[%clk 0:02:03]}  Be4 {[%clk 0:02:08]} 23. Rxd8+ {[%clk 0:02:03]}  Rxd8 {[%clk 0:02:08]} 24. c5 {[%clk 0:02:03]}  Rc8 {[%clk 0:02:06]} 25. Rd1 {[%clk 0:01:48]}  Rxc5 {[%clk 0:02:04]} 26. f3 {[%clk 0:01:45]}  Bd5 {[%clk 0:02:01]} 27. e4 {[%clk 0:01:40]}  Bxa2 {[%clk 0:02:00]} 28. Rd8+ {[%clk 0:01:39]}  Kh7 {[%clk 0:02:00]} 29. Rd7 {[%clk 0:01:39]}  Kg6 {[%clk 0:01:46]} 30. Rxa7 {[%clk 0:01:38]}  Bc4 {[%clk 0:01:47]} 31. Bxc4 {[%clk 0:01:36]}  Rxc4 {[%clk 0:01:48]} 32. Rb7 {[%clk 0:01:35]}  Rb4 {[%clk 0:01:48]} 33. Kf2 {[%clk 0:01:34]}  f5 {[%clk 0:01:43]} 34. exf5+ {[%clk 0:01:28]}  exf5 {[%clk 0:01:44]} 35. h3 {[%clk 0:01:24]}  f4 {[%clk 0:01:41]} 36. g4 {[%clk 0:01:20]}  Rb2+ {[%clk 0:01:38]} 37. Ke1 {[%clk 0:01:19]}  Kf6 {[%clk 0:01:38]} 38. h4 {[%clk 0:01:18]}  g5 {[%clk 0:01:37]} 39. hxg5+ {[%clk 0:01:17]}  hxg5 {[%clk 0:01:38]} 40. Kd1 {[%clk 0:01:15]}  Ke5 {[%clk 0:01:34]} 41. Kc1 {[%clk 0:01:14]}  Rb3 {[%clk 0:01:32]} 42. Kc2 {[%clk 0:01:14]}  Rxf3 {[%clk 0:01:32]} 43. Rxb6 {[%clk 0:01:15]}  Rg3 {[%clk 0:01:31]} 44. Rb5+ {[%clk 0:01:15]}  Kf6 {[%clk 0:01:31]} 45. Rb6+ {[%clk 0:01:16]}  Ke7 {[%clk 0:01:29]} 46. Rb7+ {[%clk 0:01:15]}  Kd6 {[%clk 0:01:28]} 47. Rb6+ {[%clk 0:01:10]}  Kc5 {[%clk 0:01:26]} 48. Rg6 {[%clk 0:01:10]}  Rxg4 {[%clk 0:01:26]} 49. Kd3 {[%clk 0:01:08]}  Kd5 {[%clk 0:01:26]} 0-1


[Site "https://www.chess.com"]

[Event "Titled Tuesday Blitz July 4 Late 2023"]
[White "Herman, Daniel"]
[Black "Haitin, Ilja"]
[WhiteFideId "30935008"]
[BlackFideId "4501764"]
[WhiteElo "2406"]
[BlackElo "2328"]
[Result "1/2-1/2"]
[Round "7"]
[TimeControl "180+2"]
[Date "2023.07.04"]
[WhiteClock "0:00:09"]
[BlackClock "0:00:09"]
[Board "113"]

1. e4 {[%clk 0:03:00]}  e6 {[%clk 0:02:56]} 2. d4 {[%clk 0:03:00]}  d5 {[%clk 0:02:57]} 3. Nc3 {[%clk 0:03:00]}  Be7 {[%clk 0:02:57]} 4. Bd3 {[%clk 0:02:53]}  Nf6 {[%clk 0:02:48]} 5. e5 {[%clk 0:02:52]}  Nfd7 {[%clk 0:02:47]} 6. f4 {[%clk 0:02:43]}  c5 {[%clk 0:02:44]} 7. Nf3 {[%clk 0:02:42]}  Nc6 {[%clk 0:02:43]} 8. Be3 {[%clk 0:02:14]}  a6 {[%clk 0:02:13]} 9. a3 {[%clk 0:02:01]}  b5 {[%clk 0:02:12]} 10. dxc5 {[%clk 0:01:56]}  Nxc5 {[%clk 0:02:09]} 11. Be2 {[%clk 0:01:35]}  Bb7 {[%clk 0:02:05]} 12. O-O {[%clk 0:01:25]}  O-O {[%clk 0:02:04]} 13. Nd4 {[%clk 0:01:22]}  Nxd4 {[%clk 0:02:01]} 14. Bxd4 {[%clk 0:01:23]}  Ne4 {[%clk 0:02:02]} 15. Nxe4 {[%clk 0:01:03]}  dxe4 {[%clk 0:02:02]} 16. Be3 {[%clk 0:01:03]}  Rc8 {[%clk 0:01:57]} 17. c3 {[%clk 0:01:00]}  Qc7 {[%clk 0:01:51]} 18. Qe1 {[%clk 0:00:52]}  Bc5 {[%clk 0:01:51]} 19. Qf2 {[%clk 0:00:51]}  Bxe3 {[%clk 0:01:50]} 20. Qxe3 {[%clk 0:00:51]}  Qc5 {[%clk 0:01:51]} 21. Kf2 {[%clk 0:00:51]}  a5 {[%clk 0:01:50]} 22. Rfd1 {[%clk 0:00:44]}  b4 {[%clk 0:01:46]} 23. axb4 {[%clk 0:00:43]}  axb4 {[%clk 0:01:46]} 24. Qxc5 {[%clk 0:00:31]}  Rxc5 {[%clk 0:01:47]} 25. cxb4 {[%clk 0:00:27]}  Rc2 {[%clk 0:01:46]} 26. Ke3 {[%clk 0:00:27]}  Rxb2 {[%clk 0:01:28]} 27. Rdb1 {[%clk 0:00:23]}  Rxb1 {[%clk 0:01:28]} 28. Rxb1 {[%clk 0:00:23]}  Rc8 {[%clk 0:01:28]} 29. Rb3 {[%clk 0:00:20]}  Bd5 {[%clk 0:01:26]} 30. Rb2 {[%clk 0:00:18]}  f6 {[%clk 0:01:20]} 31. b5 {[%clk 0:00:16]}  fxe5 {[%clk 0:01:17]} 32. fxe5 {[%clk 0:00:17]}  Bb7 {[%clk 0:01:05]} 33. b6 {[%clk 0:00:17]}  Kf7 {[%clk 0:00:59]} 34. Bg4 {[%clk 0:00:13]}  Rc3+ {[%clk 0:00:48]} 35. Ke2 {[%clk 0:00:10]}  Ke7 {[%clk 0:00:36]} 36. Rd2 {[%clk 0:00:09]}  Rc5 {[%clk 0:00:32]} 37. Ke3 {[%clk 0:00:06]}  Rxe5 {[%clk 0:00:31]} 38. Rc2 {[%clk 0:00:07]}  Rd5 {[%clk 0:00:18]} 39. Rc7+ {[%clk 0:00:06]}  Rd7 {[%clk 0:00:18]} 40. Rxd7+ {[%clk 0:00:06]}  Kxd7 {[%clk 0:00:19]} 41. Bd1 {[%clk 0:00:06]}  Kd6 {[%clk 0:00:17]} 42. Bc2 {[%clk 0:00:06]}  Ke5 {[%clk 0:00:14]} 43. Bb3 {[%clk 0:00:06]}  h6 {[%clk 0:00:13]} 44. h4 {[%clk 0:00:06]}  g5 {[%clk 0:00:13]} 45. g3 {[%clk 0:00:06]}  gxh4 {[%clk 0:00:13]} 46. gxh4 {[%clk 0:00:07]}  Kd6 {[%clk 0:00:09]} 47. Kf4 {[%clk 0:00:06]}  Kc5 {[%clk 0:00:08]} 48. Bxe6 {[%clk 0:00:05]}  Kxb6 {[%clk 0:00:08]} 49. Bf5 {[%clk 0:00:02]}  Kc5 {[%clk 0:00:07]} 50. Bxe4 {[%clk 0:00:02]}  Bxe4 {[%clk 0:00:05]} 51. Kxe4 {[%clk 0:00:03]}  Kd6 {[%clk 0:00:05]} 52. Kf5 {[%clk 0:00:04]}  Ke7 {[%clk 0:00:06]} 53. Kg6 {[%clk 0:00:05]}  Kf8 {[%clk 0:00:06]} 54. Kxh6 {[%clk 0:00:06]}  Kg8 {[%clk 0:00:06]} 55. Kg6 {[%clk 0:00:06]}  Kh8 {[%clk 0:00:07]} 56. Kh6 {[%clk 0:00:07]}  Kg8 {[%clk 0:00:08]} 57. Kg6 {[%clk 0:00:08]}  Kh8 {[%clk 0:00:08]} 58. Kh6 {[%clk 0:00:09]}  Kg8 {[%clk 0:00:09]} 1/2-1/2


[Site "https://www.chess.com"]

[Event "Titled Tuesday Blitz July 4 Late 2023"]
[White "Arnold, Ken"]
[Black "Vaglio Munoz, Jaime"]
[WhiteFideId "2056836"]
[BlackFideId "6500145"]
[WhiteElo "2391"]
[BlackElo "2302"]
[Result "1/2-1/2"]
[Round "7"]
[TimeControl "180+2"]
[Date "2023.07.04"]
[WhiteClock "0:00:14"]
[BlackClock "0:00:38"]
[Board "117"]

1. e4 {[%clk 0:03:00]}  c5 {[%clk 0:02:59]} 2. g3 {[%clk 0:03:00]}  Qa5 {[%clk 0:02:59]} 3. Bg2 {[%clk 0:02:58]}  g6 {[%clk 0:02:58]} 4. Nf3 {[%clk 0:02:54]}  Nc6 {[%clk 0:02:59]} 5. O-O {[%clk 0:02:54]}  Bg7 {[%clk 0:02:59]} 6. Nc3 {[%clk 0:02:53]}  a6 {[%clk 0:02:58]} 7. a3 {[%clk 0:02:31]}  e6 {[%clk 0:02:49]} 8. Re1 {[%clk 0:02:29]}  Nge7 {[%clk 0:02:47]} 9. Rb1 {[%clk 0:02:18]}  O-O {[%clk 0:02:44]} 10. Ne2 {[%clk 0:02:04]}  d5 {[%clk 0:02:41]} 11. exd5 {[%clk 0:01:58]}  exd5 {[%clk 0:02:40]} 12. d3 {[%clk 0:01:58]}  Bg4 {[%clk 0:02:37]} 13. Bd2 {[%clk 0:01:55]}  Qd8 {[%clk 0:02:30]} 14. h3 {[%clk 0:01:55]}  Bxf3 {[%clk 0:02:28]} 15. Bxf3 {[%clk 0:01:55]}  Nf5 {[%clk 0:02:26]} 16. Bg2 {[%clk 0:01:52]}  h5 {[%clk 0:02:23]} 17. h4 {[%clk 0:01:48]}  Re8 {[%clk 0:02:19]} 18. Bg5 {[%clk 0:01:47]}  Qd7 {[%clk 0:02:11]} 19. c3 {[%clk 0:01:44]}  d4 {[%clk 0:02:09]} 20. c4 {[%clk 0:01:43]}  b5 {[%clk 0:02:09]} 21. b3 {[%clk 0:01:39]}  Rab8 {[%clk 0:02:02]} 22. Qc2 {[%clk 0:01:35]}  Ne5 {[%clk 0:01:56]} 23. Bf4 {[%clk 0:01:30]}  bxc4 {[%clk 0:01:54]} 24. bxc4 {[%clk 0:01:28]}  Rxb1 {[%clk 0:01:54]} 25. Rxb1 {[%clk 0:01:26]}  Ng4 {[%clk 0:01:53]} 26. Rb8 {[%clk 0:01:16]}  Rxb8 {[%clk 0:01:50]} 27. Bxb8 {[%clk 0:01:15]}  Qe8 {[%clk 0:01:48]} 28. Bf4 {[%clk 0:01:09]}  Be5 {[%clk 0:01:45]} 29. Be4 {[%clk 0:01:07]}  Bxf4 {[%clk 0:01:45]} 30. Nxf4 {[%clk 0:01:07]}  Qe5 {[%clk 0:01:37]} 31. Qe2 {[%clk 0:01:04]}  Nxh4 {[%clk 0:01:34]} 32. Bd5 {[%clk 0:00:55]}  Qxe2 {[%clk 0:01:31]} 33. Nxe2 {[%clk 0:00:55]}  Nf5 {[%clk 0:01:28]} 34. Nf4 {[%clk 0:00:55]}  Nf6 {[%clk 0:01:27]} 35. Bb7 {[%clk 0:00:53]}  a5 {[%clk 0:01:27]} 36. Kf1 {[%clk 0:00:53]}  Kf8 {[%clk 0:01:26]} 37. a4 {[%clk 0:00:51]}  Ke7 {[%clk 0:01:26]} 38. Ba6 {[%clk 0:00:49]}  Kd6 {[%clk 0:01:26]} 39. Bb5 {[%clk 0:00:49]}  g5 {[%clk 0:01:26]} 40. Nh3 {[%clk 0:00:46]}  Nh7 {[%clk 0:01:22]} 41. Be8 {[%clk 0:00:44]}  Ke7 {[%clk 0:01:21]} 42. Bc6 {[%clk 0:00:44]}  f6 {[%clk 0:01:17]} 43. Be4 {[%clk 0:00:44]}  Ke6 {[%clk 0:01:17]} 44. Ke2 {[%clk 0:00:40]}  Nf8 {[%clk 0:01:16]} 45. Ng1 {[%clk 0:00:40]}  Nd6 {[%clk 0:01:14]} 46. Bf3 {[%clk 0:00:39]}  g4 {[%clk 0:01:13]} 47. Bg2 {[%clk 0:00:39]}  f5 {[%clk 0:01:13]} 48. Kd2 {[%clk 0:00:40]}  f4 {[%clk 0:01:12]} 49. Ne2 {[%clk 0:00:39]}  f3 {[%clk 0:01:11]} 50. Nf4+ {[%clk 0:00:39]}  Kf5 {[%clk 0:01:08]} 51. Bf1 {[%clk 0:00:38]}  Kg5 {[%clk 0:01:08]} 52. Nd5 {[%clk 0:00:37]}  h4 {[%clk 0:01:04]} 53. gxh4+ {[%clk 0:00:36]}  Kxh4 {[%clk 0:01:05]} 54. Ne7 {[%clk 0:00:28]}  Ne6 {[%clk 0:01:04]} 55. Nc6 {[%clk 0:00:25]}  g3 {[%clk 0:01:02]} 56. fxg3+ {[%clk 0:00:25]}  Kxg3 {[%clk 0:01:03]} 57. Nxa5 {[%clk 0:00:25]}  Kf2 {[%clk 0:00:59]} 58. Bh3 {[%clk 0:00:25]}  Nf4 {[%clk 0:00:59]} 59. Bg4 {[%clk 0:00:24]}  Kg3 {[%clk 0:00:58]} 60. Bxf3 {[%clk 0:00:23]}  Kxf3 {[%clk 0:00:59]} 61. Nb3 {[%clk 0:00:24]}  Ne6 {[%clk 0:00:58]} 62. a5 {[%clk 0:00:23]}  Nc8 {[%clk 0:00:56]} 63. a6 {[%clk 0:00:21]}  Na7 {[%clk 0:00:56]} 64. Na5 {[%clk 0:00:21]}  Kf4 {[%clk 0:00:55]} 65. Nb7 {[%clk 0:00:21]}  Ke5 {[%clk 0:00:54]} 66. Na5 {[%clk 0:00:18]}  Kd6 {[%clk 0:00:53]} 67. Nb3 {[%clk 0:00:18]}  Kc6 {[%clk 0:00:52]} 68. Nc1 {[%clk 0:00:16]}  Kb6 {[%clk 0:00:52]} 69. Ke2 {[%clk 0:00:16]}  Kxa6 {[%clk 0:00:52]} 70. Kf3 {[%clk 0:00:16]}  Kb6 {[%clk 0:00:52]} 71. Ke4 {[%clk 0:00:17]}  Kc6 {[%clk 0:00:52]} 72. Ke5 {[%clk 0:00:17]}  Nc7 {[%clk 0:00:50]} 73. Nb3 {[%clk 0:00:17]}  Nc8 {[%clk 0:00:50]} 74. Nxd4+ {[%clk 0:00:16]}  cxd4 {[%clk 0:00:49]} 75. Kxd4 {[%clk 0:00:16]}  Ne6+ {[%clk 0:00:49]} 76. Kc3 {[%clk 0:00:17]}  Kc5 {[%clk 0:00:48]} 77. d4+ {[%clk 0:00:16]}  Nxd4 {[%clk 0:00:48]} 78. Kd3 {[%clk 0:00:17]}  Nd6 {[%clk 0:00:48]} 79. Ke3 {[%clk 0:00:17]}  Ne6 {[%clk 0:00:47]} 80. Kd3 {[%clk 0:00:17]}  Nb7 {[%clk 0:00:45]} 81. Kc3 {[%clk 0:00:17]}  Na5 {[%clk 0:00:45]} 82. Kd3 {[%clk 0:00:17]}  Nd8 {[%clk 0:00:43]} 83. Kc3 {[%clk 0:00:17]}  Ndc6 {[%clk 0:00:43]} 84. Kd3 {[%clk 0:00:18]}  Nb4+ {[%clk 0:00:44]} 85. Kc3 {[%clk 0:00:18]}  Nac6 {[%clk 0:00:44]} 86. Kd2 {[%clk 0:00:17]}  Kd4 {[%clk 0:00:44]} 87. c5 {[%clk 0:00:16]}  Nd5 {[%clk 0:00:43]} 88. Ke2 {[%clk 0:00:16]}  Ke4 {[%clk 0:00:42]} 89. Kf2 {[%clk 0:00:15]}  Nf4 {[%clk 0:00:41]} 90. Kg3 {[%clk 0:00:15]}  Ne6 {[%clk 0:00:39]} 91. Kg4 {[%clk 0:00:14]}  Nxc5 {[%clk 0:00:38]} 1/2-1/2


[Site "https://www.chess.com"]

[Event "Titled Tuesday Blitz July 4 Late 2023"]
[White "Antonio, Jorge Carlos"]
[Black "Bochnicka, Vladimir"]
[WhiteFideId "113190"]
[BlackFideId "14943450"]
[WhiteElo "2294"]
[BlackElo "2379"]
[Result "0-1"]
[Round "7"]
[TimeControl "180+2"]
[Date "2023.07.04"]
[WhiteClock "0:00:03"]
[BlackClock "0:00:08"]
[Board "118"]

1. d4 {[%clk 0:03:00]}  Nf6 {[%clk 0:02:56]} 2. Nf3 {[%clk 0:03:01]}  g6 {[%clk 0:02:55]} 3. c4 {[%clk 0:03:00]}  Bg7 {[%clk 0:02:55]} 4. Nc3 {[%clk 0:03:00]}  O-O {[%clk 0:02:56]} 5. e4 {[%clk 0:02:59]}  d6 {[%clk 0:02:57]} 6. Be2 {[%clk 0:03:00]}  e5 {[%clk 0:02:56]} 7. O-O {[%clk 0:02:59]}  Nc6 {[%clk 0:02:55]} 8. d5 {[%clk 0:02:59]}  Ne7 {[%clk 0:02:56]} 9. Ne1 {[%clk 0:02:59]}  Nd7 {[%clk 0:02:56]} 10. Be3 {[%clk 0:03:00]}  f5 {[%clk 0:02:55]} 11. f3 {[%clk 0:03:00]}  f4 {[%clk 0:02:55]} 12. Bf2 {[%clk 0:03:00]}  g5 {[%clk 0:02:56]} 13. Rc1 {[%clk 0:03:00]}  Ng6 {[%clk 0:02:55]} 14. c5 {[%clk 0:02:59]}  Nf6 {[%clk 0:02:37]} 15. cxd6 {[%clk 0:02:58]}  cxd6 {[%clk 0:02:38]} 16. Nb5 {[%clk 0:02:58]}  Rf7 {[%clk 0:02:38]} 17. Qc2 {[%clk 0:02:57]}  Ne8 {[%clk 0:02:25]} 18. Nxa7 {[%clk 0:02:55]}  Bd7 {[%clk 0:02:24]} 19. Bb5 {[%clk 0:02:41]}  Qa5 {[%clk 0:02:07]} 20. Bxd7 {[%clk 0:02:14]}  Rxd7 {[%clk 0:02:08]} 21. b4 {[%clk 0:01:50]}  Qxb4 {[%clk 0:01:58]} 22. Rb1 {[%clk 0:01:46]}  Qa5 {[%clk 0:01:53]} 23. Nb5 {[%clk 0:01:45]}  Qxa2 {[%clk 0:01:47]} 24. Qxa2 {[%clk 0:01:44]}  Rxa2 {[%clk 0:01:48]} 25. Nd3 {[%clk 0:01:43]}  h5 {[%clk 0:01:39]} 26. Rfc1 {[%clk 0:01:42]}  g4 {[%clk 0:01:34]} 27. Rc8 {[%clk 0:01:36]}  Kf7 {[%clk 0:01:34]} 28. Nb4 {[%clk 0:01:29]}  Ra5 {[%clk 0:01:26]} 29. Nc6 {[%clk 0:01:00]}  bxc6 {[%clk 0:01:21]} 30. dxc6 {[%clk 0:01:00]}  Re7 {[%clk 0:01:22]} 31. Bb6 {[%clk 0:00:50]}  Ra6 {[%clk 0:01:16]} 32. Bd8 {[%clk 0:00:50]}  Bf8 {[%clk 0:01:00]} 33. Bxe7 {[%clk 0:00:48]}  Nxe7 {[%clk 0:01:01]} 34. Rd8 {[%clk 0:00:38]}  Nxc6 {[%clk 0:00:58]} 35. Rd7+ {[%clk 0:00:29]}  Be7 {[%clk 0:00:58]} 36. Rd1 {[%clk 0:00:27]}  g3 {[%clk 0:00:48]} 37. hxg3 {[%clk 0:00:26]}  fxg3 {[%clk 0:00:49]} 38. Nxd6+ {[%clk 0:00:26]}  Nxd6 {[%clk 0:00:48]} 39. R1xd6 {[%clk 0:00:24]}  Ra1+ {[%clk 0:00:40]} 40. Rd1 {[%clk 0:00:22]}  Rxd1+ {[%clk 0:00:41]} 41. Rxd1 {[%clk 0:00:21]}  Bc5+ {[%clk 0:00:41]} 42. Kh1 {[%clk 0:00:20]}  Be3 {[%clk 0:00:35]} 43. Rd6 {[%clk 0:00:17]}  Nd4 {[%clk 0:00:33]} 44. Rd7+ {[%clk 0:00:17]}  Kg6 {[%clk 0:00:31]} 45. Rd8 {[%clk 0:00:17]}  Bf4 {[%clk 0:00:31]} 46. Rg8+ {[%clk 0:00:16]}  Kf7 {[%clk 0:00:29]} 47. Rh8 {[%clk 0:00:16]}  Ke6 {[%clk 0:00:20]} 48. Rxh5 {[%clk 0:00:16]}  Kd6 {[%clk 0:00:20]} 49. Rh8 {[%clk 0:00:16]}  Kc5 {[%clk 0:00:20]} 50. Rc8+ {[%clk 0:00:15]}  Kb4 {[%clk 0:00:18]} 51. Rb8+ {[%clk 0:00:15]}  Kc3 {[%clk 0:00:18]} 52. Rb1 {[%clk 0:00:15]}  Kd3 {[%clk 0:00:15]} 53. Ra1 {[%clk 0:00:14]}  Bd2 {[%clk 0:00:14]} 54. Ra3+ {[%clk 0:00:14]}  Ke2 {[%clk 0:00:13]} 55. Ra2 {[%clk 0:00:13]}  Ne6 {[%clk 0:00:12]} 56. Ra6 {[%clk 0:00:12]}  Nf4 {[%clk 0:00:12]} 57. Ra2 {[%clk 0:00:08]}  Nd3 {[%clk 0:00:08]} 58. Ra1 {[%clk 0:00:04]}  Be1 {[%clk 0:00:08]} 59. Ra2+ {[%clk 0:00:03]}  Kf1 {[%clk 0:00:08]} 60. Ra3 {[%clk 0:00:03]}  Nf2# {[%clk 0:00:08]} 0-1


[Site "https://www.chess.com"]